{"text_format":"3","workbook":"xlsx","n_sheets":1,"sheets":["Hochzeitsbudget"],"not_rendered":{"images":1},"read":"whole","date_system":"1900"}

{"sheet":"Hochzeitsbudget","index":0,"n_rows":109,"n_cols":5,"rows_kept":109,"merged":[[2,1,3,1],[5,1,6,1],[14,1,15,1],[24,1,25,1],[33,1,34,1],[43,1,44,1],[50,1,51,1],[60,1,61,1],[73,1,74,1],[87,1,88,1],[95,1,96,1]]}
[{"$nulls":4}," "]
[]
[null,"Gesamtausgaben ","Geschätzt","Tatsächlich"]
[null,null,{"$f":"C7+C16+C26+C35+C45+C52+C62+C75+C89+C97","v":{"v":350,"d":"350 €"}},{"$f":"D7+D16+D26+D35+D45+D52+D62+D75+D89+D97","v":{"v":320,"d":"320 €"}}]
[]
[null,"Bekleidung","Geschätzt","Tatsächlich"]
[null,null,{"$f":"SUM(Tabelle_Kleidung[[#All],[Geschätzt]])","v":{"v":350,"d":"350 €"}},{"$f":"SUM(Tabelle_Kleidung[[#All],[Tatsächlich]])","v":{"v":320,"d":"320 €"}}]
[null,"Spalte 1","Geschätzt","Tatsächlich"]
[null,"Trauringe",{"v":350,"d":"350.00 €"},{"v":320,"d":"320.00 €"}]
[null,"Hochzeitsbekleidung"]
[null,"Zubehör"]
[null,"Schuhe"]
[null,"Sonstiges – bitte Details eingeben"]
[]
[null,"Dekorationen","Geschätzt","Tatsächlich"]
[null,null,{"$f":"SUM(Tabelle_Dekoration[[#All],[Geschätzt]])","v":{"v":0,"d":"0 €"}},{"$f":"SUM(Tabelle_Dekoration[[#All],[Tatsächlich]])","v":{"v":0,"d":"0 €"}}]
[null,"Spalte 1","Geschätzt","Tatsächlich"]
[null,"Schleifen für Kirchenbänke / sonstige Sitzgelegenheiten"]
[null,"Tafelaufsätze (ohne Blumen)"]
[null,"Kerzen"]
[null,"Beleuchtung"]
[null,"Ballons"]
[null,"Sonstiges – bitte Details eingeben"]
[]
[null,"Geschenke","Geschätzt","Tatsächlich"]
[null,null,{"$f":"SUM(Tabelle_Geschenke[[#All],[Geschätzt]])","v":{"v":0,"d":"0 €"}},{"$f":"SUM(Tabelle_Geschenke[[#All],[Tatsächlich]])","v":{"v":0,"d":"0 €"}}]
[null,"Spalte 1","Geschätzt","Tatsächlich"]
[null,"Teilnehmer"]
[null,"Brautleute"]
[null,"Eltern"]
[null,"Vortragende / sonstige Teilnehmer"]
[null,"Sonstiges – bitte Details eingeben"]
[]
[null,"Blumen","Geschätzt","Tatsächlich"]
[null,null,{"$f":"SUM(Tabelle_Blumen[[#All],[Geschätzt]])","v":{"v":0,"d":"0 €"}},{"$f":"SUM(Tabelle_Blumen[[#All],[Tatsächlich]])","v":{"v":0,"d":"0 €"}}]
[null,"Spalte 1","Geschätzt","Tatsächlich"]
[null,"Sträuße"]
[null,"Boutonnières"]
[null,"Anstecksträuße"]
[null,"Zeremonie"]
[null,"Empfang"]
[null,"Sonstiges – bitte Details eingeben"]
[]
[null,"Musik","Geschätzt","Tatsächlich"]
[null,null,{"$f":"SUM(Tabelle_Musik[[#All],[Geschätzt]])","v":{"v":0,"d":"0 €"}},{"$f":"SUM(Tabelle_Musik[[#All],[Tatsächlich]])","v":{"v":0,"d":"0 €"}}]
[null,"Spalte 1","Geschätzt","Tatsächlich"]
[null,"Musiker für Zeremonie"]
[null,"Band / DJ für Empfang"]
[null,"Sonstiges – bitte Details eingeben"]
[]
[null,"Fotografie","Geschätzt","Tatsächlich"]
[null,null,{"$f":"SUM(Tabelle_Fotografie[[#All],[Geschätzt]])","v":{"v":0,"d":"0 €"}},{"$f":"SUM(Tabelle_Fotografie[[#All],[Tatsächlich]])","v":{"v":0,"d":"0 €"}}]
[null,"Spalte 1","Geschätzt","Tatsächlich"]
[null,"Formelle Fotos"]
[null,"Schnappschüsse"]
[null,"Zusätzliche Abzüge"]
[null,"Fotoalben"]
[null,"Videoaufnahmen"]
[null,"Sonstiges – bitte Details eingeben"]
[]
[null,"Empfang (ohne Musik und Dekoration)","Geschätzt","Tatsächlich"]
[null,null,{"$f":"SUM(Tabelle_Empfang[[#All],[Geschätzt]])","v":{"v":0,"d":"0 €"}},{"$f":"SUM(Tabelle_Empfang[[#All],[Tatsächlich]])","v":{"v":0,"d":"0 €"}}]
[null,"Spalte 1","Geschätzt","Tatsächlich"]
[null,"Raum- / Saalkosten"]
[null,"Tische und Stühle"]
[null,"Essen"]
[null,"Getränke"]
[null,"Tischwäsche"]
[null,"Torte"]
[null,"Gastgeschenke"]
[null,"Personal und Trinkgelder"]
[null,"Sonstiges – bitte Details eingeben"]
[]
[null,"Drucksachen / Papier","Geschätzt","Tatsächlich"]
[null,null,{"$f":"SUM(Tabelle_DruckmaterialBriefpapier[[#All],[Geschätzt]])","v":{"v":0,"d":"0 €"}},{"$f":"SUM(Tabelle_DruckmaterialBriefpapier[[#All],[Tatsächlich]])","v":{"v":0,"d":"0 €"}}]
[null,"Spalte 1","Geschätzt","Tatsächlich"]
[null,"Einladungen"]
[null,"Ankündigungen"]
[null,"Dankschreiben"]
[null,"Persönliches Briefpapier"]
[null,"Gästebuch"]
[null,"Programme"]
[null,"Servietten für Empfang"]
[null,"Streichholzbriefchen"]
[null,"Kalligrafie"]
[null,"Sonstiges – bitte Details eingeben"]
[]
[null,"Beförderung","Geschätzt","Tatsächlich"]
[null,null,{"$f":"SUM(Tabelle_Transport[[#All],[Geschätzt]])","v":{"v":0,"d":"0 €"}},{"$f":"SUM(Tabelle_Transport[[#All],[Tatsächlich]])","v":{"v":0,"d":"0 €"}}]
[null,"Spalte 1","Geschätzt","Tatsächlich"]
[null,"Limousinen / Handwagen"]
[null,"Parken"]
[null,"Taxis"]
[null,"Sonstiges – bitte Details eingeben"]
[]
[null,"Sonstige Ausgaben","Geschätzt","Tatsächlich"]
[null,null,{"$f":"SUM(Tabelle_sonstigeAusgaben[[#All],[Geschätzt]])","v":{"v":0,"d":"0 €"}},{"$f":"SUM(Tabelle_sonstigeAusgaben[[#All],[Tatsächlich]])","v":{"v":0,"d":"0 €"}}]
[null,"Spalte 1","Geschätzt","Tatsächlich"]
[null,"Offiziant"]
[null,"Standortgebühr für Kirche / Zeremonie"]
[null,"Hochzeitskoordinator"]
[null,"Probediner"]
[null,"Verlobungsparty"]
[null,"Empfänge"]
[null,"Friseurtermine"]
[null,"Junggesellen/-innenabschied"]
[null,"Frühstück"]
[null,"Hotelzimmer"]
[null,"Sonstiges – bitte Details eingeben"]